fUSD/lending_fUSD_20251115
["ID","MTS","AMOUNT","RATE_DAILY","PERIOD"]
[394052624,1763233844184,-250.0,0.00016876,2]
[394052625,1763233844193,-250.0,0.00016876,2]
[394052626,1763233844204,-500.0,0.00016876,2]
[394052627,1763233844214,-151.0,0.00016876,2]
[394052628,1763233844223,-500.0,0.00016876,2]
[394052629,1763233844234,-250.0,0.00016876,2]
[394052630,1763233844245,-250.0,0.00016876,2]
[394052631,1763233844255,-250.0,0.00016876,2]
[394052632,1763233844265,-151.0,0.00016876,2]
[394052633,1763233844275,-500.0,0.00016876,2]
[394052634,1763233844286,-250.0,0.00016876,2]
[394052635,1763233844297,-250.0,0.00016876,2]
[394052636,1763233844307,-250.0,0.00016876,2]
[394052637,1763233844317,-500.0,0.00016876,2]
[394052638,1763233844327,-151.0,0.00016876,2]
[394052639,1763233844337,-250.0,0.00016876,2]
[394052640,1763233844347,-250.0,0.00016876,2]
[394052641,1763233844360,-500.0,0.00016876,2]
[394052642,1763233844370,-151.0,0.00016876,2]
[394052643,1763233844380,-250.0,0.00016876,2]
[394052644,1763233844390,-151.0,0.00016876,2]
[394052645,1763233844401,-250.0,0.00016876,2]
[394052646,1763233844411,-151.0,0.00016876,2]
[394052647,1763233844421,-250.0,0.00016876,2]
[394052648,1763233844432,-151.0,0.00016876,2]
[394052649,1763233844443,-151.0,0.00016876,2]
[394052650,1763233844452,-250.0,0.00016876,2]
[394052651,1763233844462,-480.37353928,0.00016876,2]
[394052652,1763233844472,-220.0,0.00016876,2]
[394052653,1763233844481,-220.0,0.00016876,2]
[394052654,1763233844491,-220.0,0.00016876,2]
[394052655,1763233844501,-200.0,0.00016876,2]
[394052656,1763233844512,-359.67589198,0.00016876,2]
[394052657,1763233844523,-371.97747219,0.00016876,2]
[394052658,1763233844533,-151.0,0.00016876,2]
[394052659,1763233844543,-151.0,0.00016876,2]
[394052660,1763233844553,-250.0,0.00016876,2]
[394052661,1763233844563,-151.0,0.00016876,2]
[394052662,1763233844572,-250.0,0.00016876,2]
[394052663,1763233844582,-200.0,0.00016876,2]
[394052664,1763233844593,-151.0,0.00016876,2]
[394052665,1763233844603,-250.0,0.00016876,2]
[394052666,1763233844612,-151.0,0.00016876,2]
[394052667,1763233844622,-250.0,0.00016876,2]
[394052668,1763233844632,-151.0,0.00016876,2]
[394052669,1763233844642,-250.0,0.00016876,2]
[394052670,1763233844652,-151.0,0.00016876,2]
[394052671,1763233844661,-500.0,0.00016876,2]
[394052672,1763233844670,-250.0,0.00016876,2]
[394052673,1763233844681,-250.0,0.00016876,2]
[394052674,1763233844691,-151.0,0.00016876,2]
[394052675,1763233844702,-500.0,0.00016876,2]
[394052676,1763233844711,-250.0,0.00016876,2]
[394052677,1763233844721,-250.0,0.00016876,2]
[394052678,1763233844730,-151.0,0.00016876,2]
[394052679,1763233844740,-500.0,0.00016876,2]
[394052680,1763233844750,-250.0,0.00016876,2]
[394052681,1763233844760,-250.0,0.00016876,2]
[394052682,1763233844770,-151.0,0.00016876,2]
[394052683,1763233844779,-500.0,0.00016876,2]
[394052684,1763233844789,-250.0,0.00016876,2]
[394052685,1763233844798,-250.0,0.00016876,2]
[394052686,1763233844808,-151.0,0.00016876,2]
[394052687,1763233844817,-500.0,0.00016876,2]
[394052688,1763233844827,-250.0,0.00016876,2]
[394052689,1763233844836,-500.0,0.00016876,2]
[394052690,1763233844846,-250.0,0.00016876,2]
[394052691,1763233844855,-250.0,0.00016876,2]
[394052692,1763233844865,-436.02266806,0.00016876,2]
[394052693,1763233844874,-250.0,0.00016876,2]
[394052694,1763233844884,-250.0,0.00016876,2]
[394052695,1763233844893,-250.0,0.00016876,2]
[394052696,1763233844903,-250.0,0.00016876,2]
[394052697,1763233844913,-250.0,0.00016876,2]
[394052698,1763233844922,-250.0,0.00016876,2]
[394052699,1763233844931,-620.0,0.00016876,2]
[394052700,1763233844941,-151.0,0.00016876,2]
[394052701,1763233844951,-151.0,0.00016876,2]
[394052702,1763233844960,-151.0,0.00016876,2]
[394052703,1763233844970,-151.0,0.00016876,2]
[394052704,1763233844980,-151.0,0.00016876,2]
[394052705,1763233844989,-151.0,0.00016876,2]
[394052706,1763233844999,-151.0,0.00016876,2]
[394052707,1763233845009,-263.62259856,0.00016876,2]
[394052708,1763233845019,-151.0,0.00016876,2]
[394052709,1763233845029,-151.0,0.00016876,2]
[394052710,1763233845038,-151.0,0.00016876,2]
[394052711,1763233845047,-151.0,0.00016876,2]
[394052712,1763233845057,-151.0,0.00016876,2]
[394052714,1763233845066,-151.0,0.00016876,2]
[394052715,1763233845075,-151.0,0.00016876,2]
[394052716,1763233845084,-250.0,0.00016876,2]
[394052718,1763233845094,-151.0,0.00016876,2]
[394052720,1763233845103,-250.0,0.00016876,2]
[394052722,1763233845113,-151.0,0.00016876,2]
[394052727,1763233845356,-250.0,0.00016876,2]
[394052728,1763233845369,-151.0,0.00016876,2]
[394052729,1763233845379,-250.0,0.00016876,2]
[394052730,1763233845388,-151.0,0.00016876,2]
[394052731,1763233845398,-250.0,0.00016876,2]
[394052732,1763233845407,-250.0,0.00016876,2]
[394052733,1763233845417,-250.0,0.00016876,2]
[394052734,1763233845427,-250.0,0.00016876,2]
[394052735,1763233845436,-250.0,0.00016876,2]
[394052736,1763233845445,-250.0,0.00016876,2]
[394052737,1763233845455,-250.0,0.00016876,2]
[394052738,1763233845464,-500.0,0.00016886,2]
[394052739,1763233845473,-500.0,0.00016886,2]
[394052740,1763233845483,-190.4931743,0.00016886,2]
[394052741,1763233845492,-163.67783596,0.00016886,2]
[394052742,1763233845501,-500.0,0.00016886,2]
[394052743,1763233845511,-500.0,0.00016886,2]
[394052744,1763233845521,-481.01736033,0.00016886,2]
[394052745,1763233845531,-421.19668754,0.00016898,2]
[394052746,1763233845541,-17581.19216142,0.00016898,2]
[394052747,1763233845550,-150.0,0.00016998,2]
[394052748,1763233845563,-250.0,0.00017,2]
[394052749,1763233845573,-256.0,0.00017014,2]
[394052750,1763233845583,-475.0,0.00017024,2]
[394052751,1763233845592,-338.62,0.000171,2]
[394052752,1763233845602,-169.4,0.000171,2]
[394052753,1763233845612,-169.4,0.000171,2]
[394052754,1763233845621,-169.4,0.000171,2]
[394052755,1763233845631,-593.07,0.00017147,2]
[394052756,1763233845641,-475.0,0.00017161,2]
[394052757,1763233845652,-169.4,0.00017278,2]
[394052758,1763233845662,-475.0,0.00017298,2]
[394052759,1763233845672,-500.0,0.00017321,2]
[394052760,1763233845682,-151.0,0.00017343,2]
[394052761,1763233845692,-593.30755412,0.00017421,2]
[394052762,1763233845702,-1000.0,0.00017421,2]
[394052763,1763233845711,-593.07,0.00017421,2]
[394052764,1763233845721,-200.0,0.00017424,2]
[394052765,1763233845730,-595.37131296,0.00017424,2]
[394052766,1763233845740,-200.0,0.00017424,2]
[394052767,1763233845749,-299.58021915,0.00017424,2]
[394052768,1763233845759,-151.0,0.00017424,2]
[394052769,1763233845769,-475.0,0.00017435,2]
[394052770,1763233845778,-475.0,0.00017572,2]
[394052771,1763233845787,-1000.0,0.00017597,2]
[394052772,1763233845797,-593.07,0.00017695,2]
[394052773,1763233845807,-500.0,0.00017696,2]
[394052774,1763233845816,-475.0,0.00017709,2]
[394052775,1763233845826,-421.19668753,0.0001771,2]
[394052776,1763233845836,-500.0,0.00017796,2]
[394052778,1763233845847,-500.0,0.00017796,2]
[394052780,1763233845861,-169.4,0.00017861,2]
[394052782,1763233845871,-338.8,0.00017861,2]
[394052783,1763233845890,-169.4,0.00017861,2]
[394052784,1763233845903,-169.4,0.00017861,2]
[394052786,1763233845913,-338.05,0.00017861,2]
[394052788,1763233845923,-169.37,0.00017863,2]
[394052790,1763233845932,-151.0,0.00017891,2]
[394052792,1763233845945,-261.861,0.00017897,2]
[394052794,1763233845955,-188.938,0.00017897,2]
[394052796,1763233845965,-217.542,0.00017897,2]
[394052798,1763233845976,-153.393,0.00017897,2]
[394052801,1763233845986,-168.0,0.00017905,2]
[394052803,1763233845996,-169.2044629,0.00017919,2]
[394052804,1763233846010,-150.0,0.00017934,2]
[394052806,1763233846020,-248.757,0.00017934,2]
[394052807,1763233846031,-189.176,0.00017934,2]
[394052808,1763233846040,-162.356,0.00017934,2]
[394052809,1763233846050,-210.184,0.00017934,2]
[394052810,1763233846060,-266.384,0.00017934,2]
[394052811,1763233846070,-221.588,0.00017934,2]
[394052812,1763233846080,-1318.0,0.00017934,2]
[394052813,1763233846090,-3430.0,0.00017934,2]
[394052814,1763233846100,-608.0,0.00017934,2]
[394052815,1763233846110,-575.0,0.00017934,2]
[394052816,1763233846120,-821.0,0.00017934,2]
[394052817,1763233846130,-1598.0,0.00017934,2]
[394052818,1763233846140,-1275.0,0.00017934,2]
[394052819,1763233846154,-793.0,0.00017934,2]
[394052820,1763233846164,-3072.984,0.00017934,2]
[394052821,1763233846174,-1603.0,0.00017934,2]
[394052822,1763233846183,-560.0,0.00017934,2]
[394052823,1763233846193,-593.07,0.00017968,2]
[394052824,1763233846203,-432.8024288,0.00017972,2]
[394052825,1763233846213,-200.0,0.00017972,2]
[394052826,1763233846223,-617.40005154,0.00017972,2]
[394052827,1763233846232,-200.0,0.00017972,2]
[394052828,1763233846242,-151.0,0.00017972,2]
[394052829,1763233846252,-935.0,0.00017985,2]
[394052830,1763233846262,-572.12407004,0.00018009,2]
[394052831,1763233846272,-4646.0958396,0.00018019,2]
[394052832,1763233846282,-73408.3563757,0.00018019,2]
[394052833,1763233846346,-1825.84649464,0.00018019,2]
[394052834,1763233846362,-1042.83351939,0.00018019,2]
[394052835,1763233846374,-484.36556644,0.00018019,2]
[394052836,1763233846386,-92541.77117908,0.00018019,2]
[394052837,1763233846399,-470.73588299,0.00018019,2]
[394052838,1763233846411,-35859.77727969,0.00018019,2]
[394052839,1763233846423,-1750.7566905,0.00018019,2]
[394052840,1763233846437,-2366.88713661,0.00018019,2]
[394052841,1763233846449,-9944.99656278,0.00018019,2]
[394052842,1763233846553,-267.93,0.00017897,2]
[394052843,1763233846563,-14771.83263558,0.00018019,2]
[394052844,1763233846577,-17220.23736442,0.00018019,2]
[394052845,1763233846604,-33758.187783,0.00018019,2]
[394052846,1763233846616,-16248.29071954,0.00018019,2]
[394052847,1763233846628,-42152.53497753,0.00018019,2]
[394052848,1763233973138,-955.0,0.00016773,2]
[394052849,1763233973167,-500.0,0.00016774,2]
[394052850,1763233973193,-500.0,0.00016774,2]
[394052851,1763233973221,-500.0,0.00016774,2]
[394052852,1763233973251,-500.0,0.00016774,2]
[394052853,1763233973280,-500.0,0.00016774,2]
[394052854,1763233973307,-500.0,0.00016774,2]
[394052855,1763233973334,-500.0,0.00016774,2]
[394052856,1763233973363,-500.0,0.00016774,2]
[394052857,1763233973394,-500.0,0.00016774,2]
[394052858,1763233973423,-500.0,0.00016774,2]
[394052859,1763233973453,-500.0,0.00016774,2]
[394052860,1763233973483,-500.0,0.00016774,2]
[394052861,1763233973512,-500.0,0.00016774,2]
[394052862,1763233973546,-500.0,0.00016774,2]
[394052863,1763233973576,-500.0,0.00016774,2]
[394052864,1763233973606,-500.0,0.00016774,2]
[394052865,1763233973637,-500.0,0.00016774,2]
[394052866,1763233973667,-500.0,0.00016774,2]
[394052867,1763233973698,-500.0,0.00016774,2]
[394052868,1763233973727,-500.0,0.00016774,2]
[394052869,1763233973755,-500.0,0.00016774,2]
[394052870,1763233973784,-500.0,0.00016774,2]
[394052871,1763233973813,-500.0,0.00016774,2]
[394052872,1763233973841,-500.0,0.00016774,2]
[394052873,1763233973868,-500.0,0.00016774,2]
[394052874,1763233973897,-500.0,0.00016774,2]
[394052875,1763233973928,-500.0,0.00016774,2]
[394052876,1763233973958,-500.0,0.00016774,2]
[394052877,1763233973987,-500.0,0.00016774,2]
[394052878,1763233974021,-500.0,0.00016774,2]
[394052879,1763233974049,-500.0,0.00016774,2]
[394052880,1763233974078,-500.0,0.00016774,2]
[394052881,1763233974107,-500.0,0.00016774,2]
[394052882,1763233974135,-500.0,0.00016774,2]
[394052883,1763233974163,-500.0,0.00016774,2]
[394052884,1763233974191,-500.0,0.00016774,2]
[394052885,1763233974219,-500.0,0.00016774,2]
[394052886,1763233974246,-500.0,0.00016774,2]
[394052887,1763233974274,-500.0,0.00016774,2]
[394052888,1763233974301,-500.0,0.00016774,2]
[394052889,1763233974328,-500.0,0.00016774,2]
[394052890,1763233974355,-500.0,0.00016774,2]
[394052891,1763233974382,-345.0,0.00016774,2]
[394052892,1763234062878,316.24568262,0.00027397,120]
[394052893,1763234084826,150.5,0.0002609,120]
[394052894,1763234085266,150.5,0.0002608,120]
[394052895,1763234085751,150.5,0.0002607,120]
[394052896,1763234113779,347.0,0.00027155,120]
[394052897,1763234115128,347.0,0.00028513,120]
[394052898,1763234116736,347.0,0.00029938,120]
[394052900,1763234406803,437.16,0.00026986,120]
[394052901,1763234408794,174.0,0.00028278,120]
[394052902,1763234410204,174.0,0.00029692,120]
[394052903,1763234554561,150.0,0.00016374,120]
[394052904,1763234707626,174.0,0.00028324,120]
[394052905,1763234708884,174.0,0.0002974,120]
[394052906,1763234726293,-356.18366477,0.00041422,120]
[394052907,1763234726335,-422.57581179,0.00041422,120]
[394052908,1763234726375,-834.32,0.00041422,120]
[394052909,1763234726413,-834.44112038,0.00041422,120]
[394052910,1763234726453,-500.0,0.00041422,120]
[394052911,1763234726493,-500.0,0.00041422,120]
[394052912,1763234726533,-500.0,0.00041422,120]
[394052913,1763234726574,-294.08229089,0.00041422,120]
[394052914,1763234726616,-500.0,0.00041422,120]
[394052915,1763234726655,-500.0,0.00041422,120]
[394052916,1763234726700,-500.0,0.00041422,120]
[394052917,1763234726742,-500.0,0.00041422,120]
[394052918,1763234726782,-569.50697451,0.00041422,120]
[394052919,1763234726828,-500.0,0.00041422,120]
[394052920,1763234727055,-500.0,0.00041422,120]
[394052921,1763234727096,-289.31684841,0.00041422,120]
[394052922,1763234727139,-494.88203893,0.00041422,120]
[394052923,1763234727182,-500.0,0.00041422,120]
[394052924,1763234727221,-500.0,0.00041422,120]
[394052925,1763234727260,-500.0,0.00041422,120]
[394052926,1763234727302,-157.12208877,0.00041422,120]
[394052927,1763234727342,-500.0,0.00041422,120]
[394052928,1763234727381,-621.52324264,0.00041422,120]
[394052929,1763234727421,-488.84831789,0.00041422,120]
[394052930,1763234727460,-500.0,0.00041422,120]
[394052931,1763234727498,-500.0,0.00041422,120]
[394052932,1763234727542,-500.0,0.00041422,120]
[394052933,1763234727585,-219.15332413,0.00041422,120]
[394052934,1763234727626,-500.0,0.00041422,120]
[394052935,1763234727666,-500.0,0.00041422,120]
[394052936,1763234727709,-500.0,0.00041422,120]
[394052937,1763234727753,-645.23703617,0.00041422,120]
[394052938,1763234727801,-500.0,0.00041422,120]
[394052939,1763234727845,-500.0,0.00041422,120]
[394052940,1763234727893,-464.42255876,0.00041422,120]
[394052941,1763234727934,-500.0,0.00041422,120]
[394052942,1763234727974,-500.0,0.00041422,120]
[394052943,1763234728014,-1163.88,0.00041422,120]
[394052944,1763234728054,-512.64380414,0.00041422,120]
[394052945,1763234728094,-1163.88,0.00041422,120]
[394052946,1763234728136,-1163.88,0.00041422,120]
[394052947,1763234728175,-500.0,0.00041422,120]
[394052948,1763234728216,-1163.88,0.00041422,120]
[394052949,1763234728256,-500.0,0.00041422,120]
[394052950,1763234728298,-1163.88,0.00041422,120]
[394052951,1763234728338,-239.2014302,0.00041422,120]
[394052952,1763234728380,-1163.88,0.00041422,120]
[394052953,1763234728420,-500.0,0.00041422,120]
[394052954,1763234728460,-1163.88,0.00041422,120]
[394052955,1763234728500,-500.0,0.00041422,120]
[394052956,1763234728538,-208.57464502,0.00041422,120]
[394052957,1763234728585,-1163.88,0.00041422,120]
[394052958,1763234728627,-448.95910207,0.00041422,120]
[394052959,1763234728706,-1163.88,0.00041422,120]
[394052960,1763234728769,-1163.88,0.00041422,120]
[394052961,1763234728835,-1163.88,0.00041422,120]
[394052962,1763234728893,-500.0,0.00041422,120]
[394052963,1763234728949,-1163.88,0.00041422,120]
[394052964,1763234729007,-500.0,0.00041422,120]
[394052965,1763234729066,-1163.88,0.00041422,120]
[394052966,1763234729137,-270.92629267,0.00041422,120]
[394052967,1763234729190,-1163.88,0.00041422,120]
[394052968,1763234729244,-1163.88,0.00041422,120]
[394052969,1763234729303,-1163.88,0.00041422,120]
[394052970,1763234729355,-1163.88,0.00041422,120]
[394052971,1763234729428,-1163.88,0.00041422,120]
[394052972,1763234729485,-1163.88,0.00041422,120]
[394052973,1763234729539,-1163.88,0.00041422,120]
[394052974,1763234729595,-1163.88,0.00041422,120]
[394052975,1763234729653,-500.0,0.00041422,120]
[394052976,1763234729708,-1163.88,0.00041422,120]
[394052977,1763234729760,-500.0,0.00041422,120]
[394052978,1763234729814,-1163.88,0.00041422,120]
[394052979,1763234729866,-235.3459468,0.00041422,120]
[394052980,1763234729915,-1163.92996318,0.00041422,120]
[394052981,1763234729966,-500.0,0.00041422,120]
[394052982,1763234730015,-500.0,0.00041422,120]
[394052983,1763234730065,-500.0,0.00041422,120]
[394052984,1763234730114,-500.0,0.00041422,120]
[394052985,1763234730164,-500.0,0.00041422,120]
[394052986,1763234730213,-500.0,0.00041422,120]
[394052987,1763234730262,-500.0,0.00041422,120]
[394052988,1763234730310,-408.11001795,0.00041422,120]
[394052989,1763234730359,-216.45590445,0.00041422,120]
[394052990,1763234730407,-500.0,0.00041422,120]
[394052991,1763234730459,-339.29365275,0.00041422,120]
[394052992,1763234730507,-500.0,0.00041422,120]
[394052993,1763234730557,-500.0,0.00041422,120]
[394052994,1763234730605,-500.0,0.00041422,120]
[394052995,1763234730656,-274.20241304,0.00041422,120]
[394052996,1763234730698,-500.0,0.00041422,120]
[394052997,1763234730743,-500.0,0.00041422,120]
[394052998,1763234731015,-500.0,0.00041422,120]
[394052999,1763234731070,-458.50331131,0.00041422,120]
[394053000,1763234731109,-500.0,0.00041422,120]
[394053001,1763234731158,-500.0,0.00041422,120]
[394053002,1763234731205,-549.07415534,0.00041422,120]
[394053003,1763234731249,-500.0,0.00041422,30]
[394053004,1763234731289,-500.0,0.00041422,30]
[394053005,1763234731330,-500.0,0.00041422,120]
[394053006,1763234731372,-500.0,0.00041422,30]
[394053007,1763234731412,-500.0,0.00041422,120]
[394053008,1763234731453,-500.0,0.00041422,30]
[394053009,1763234731494,-500.0,0.00041422,120]
[394053010,1763234731533,-500.0,0.00041422,30]
[394053011,1763234731572,-275.37628034,0.00041422,120]
[394053012,1763234731613,-500.0,0.00041422,30]
[394053013,1763234731654,-500.0,0.00041422,30]
[394053014,1763234731696,-500.0,0.00041422,30]
[394053015,1763234731742,-500.0,0.00041422,30]
[394053016,1763234731785,-2183.48,0.00041422,120]
[394053017,1763234731828,-513.76201692,0.00041422,30]
[394053018,1763234731871,-2183.48,0.00041422,120]
[394053019,1763234731913,-2183.48,0.00041422,120]
[394053020,1763234731954,-2183.48,0.00041422,120]
[394053021,1763234731995,-2183.48,0.00041422,120]
[394053022,1763234732033,-500.0,0.00041422,120]
[394053023,1763234732070,-647.59727001,0.00041422,120]
[394053024,1763234732111,-2183.48,0.00041422,120]
[394053025,1763234732148,-500.0,0.00041422,120]
[394053026,1763234732188,-2183.48,0.00041422,120]
[394053027,1763234732225,-500.0,0.00041422,120]
[394053028,1763234732264,-500.0,0.00041422,120]
[394053029,1763234732301,-2183.48,0.00041422,120]
[394053030,1763234732338,-222.47204575,0.00041422,120]
[394053031,1763234732377,-2183.48,0.00041422,120]
[394053032,1763234732416,-500.0,0.00041422,120]
[394053033,1763234732456,-2183.48,0.00041422,120]
[394053034,1763234732495,-500.0,0.00041422,120]
[394053035,1763234732536,-2183.48,0.00041422,120]
[394053036,1763234732575,-2183.48,0.00041422,120]
[394053037,1763234732616,-307.24448594,0.00041422,120]
[394053038,1763234732656,-490.18926766,0.00041422,120]
[394053039,1763234732699,-2183.48,0.00041422,120]
[394053040,1763234732745,-2183.48,0.00041422,120]
[394053041,1763234732789,-2183.48,0.00041422,120]
[394053042,1763234732830,-2183.48,0.00041422,120]
[394053043,1763234732872,-2183.48,0.00041422,120]
[394053044,1763234732913,-500.0,0.00041422,120]
[394053045,1763234732953,-2183.48,0.00041422,120]
[394053046,1763234732991,-500.0,0.00041422,120]
[394053047,1763234733030,-500.0,0.00041422,120]
[394053048,1763234733068,-500.0,0.00041422,120]
[394053049,1763234733105,-2183.48,0.00041422,120]
[394053050,1763234733143,-500.0,0.00041422,120]
[394053051,1763234733180,-500.0,0.00041422,120]
[394053052,1763234733219,-500.0,0.00041422,120]
[394053053,1763234733256,-2183.48,0.00041422,120]
[394053054,1763234733293,-323.90283998,0.00041422,120]
[394053055,1763234733330,-500.0,0.00041422,120]
[394053056,1763234733369,-500.0,0.00041422,120]
[394053057,1763234733407,-209.70554203,0.00041422,120]
[394053058,1763234733445,-500.0,0.00041422,120]
[394053059,1763234733485,-2183.48,0.00041422,120]
[394053060,1763234733522,-500.0,0.00041422,120]
[394053061,1763234733561,-500.0,0.00041422,120]
[394053062,1763234733601,-2183.48,0.00041422,120]
[394053063,1763234733641,-246.68598532,0.00041422,120]
[394053064,1763234733680,-500.0,0.00041422,120]
[394053065,1763234733725,-2183.48,0.00041422,120]
[394053066,1763234733766,-2183.64616425,0.00041422,120]
[394053067,1763234733814,-500.0,0.00041422,120]
[394053068,1763234733860,-500.0,0.00041422,120]
[394053069,1763234733901,-500.0,0.00041422,120]
[394053070,1763234733941,-500.0,0.00041422,120]
[394053071,1763234733981,-500.0,0.00041422,120]
[394053072,1763234734020,-500.0,0.00041422,120]
[394053073,1763234734058,-500.0,0.00041422,120]
[394053074,1763234734096,-500.0,0.00041422,120]
[394053075,1763234734132,-500.0,0.00041422,120]
[394053076,1763234734307,-500.0,0.00041422,120]
[394053077,1763234734347,-484.86859593,0.00041422,120]
[394053078,1763234734387,-500.0,0.00041422,120]
[394053079,1763234734424,-500.0,0.00041422,120]
[394053080,1763234734462,-500.0,0.00041422,120]
[394053081,1763234734501,-500.0,0.00041422,120]
[394053082,1763234734538,-500.0,0.00041422,120]
[394053083,1763234734577,-500.0,0.00041422,120]
[394053084,1763234734614,-500.0,0.00041422,120]
[394053085,1763234734655,-500.0,0.00041422,120]
[394053086,1763234734695,-500.0,0.00041422,120]
[394053087,1763234734737,-500.0,0.00041422,120]
[394053088,1763234734776,-500.0,0.00041422,120]
[394053089,1763234734816,-500.0,0.00041422,120]
[394053090,1763234734854,-500.0,0.00041422,120]
[394053091,1763234734892,-406.19956655,0.00041422,120]
[394053092,1763234734930,-500.0,0.00041422,120]
[394053093,1763234734974,-500.0,0.00041422,120]
[394053094,1763234735013,-500.0,0.00041422,120]
[394053095,1763234735051,-224.15188811,0.00041422,120]
[394053096,1763234735088,-396.98544208,0.00041422,120]
[394053097,1763234735123,-276.7810644,0.00041422,120]
[394053098,1763234735159,-500.0,0.00041422,120]
[394053099,1763234735195,-500.0,0.00041422,120]
[394053100,1763234735229,-452.34384808,0.00041422,120]
[394053101,1763234735263,-500.0,0.00041422,120]
[394053102,1763234735298,-500.0,0.00041422,120]
[394053103,1763234735334,-500.0,0.00041422,120]
[394053104,1763234735368,-500.0,0.00041422,120]
[394053105,1763234735402,-500.0,0.00041422,120]
[394053106,1763234735437,-504.21497297,0.00041422,120]
[394053107,1763234735472,-308.35485643,0.00041422,120]
[394053108,1763234735507,-314.01247751,0.00041422,120]
[394053109,1763234735543,-500.0,0.00041422,120]
[394053110,1763234735582,-500.0,0.00041422,120]
[394053111,1763234735620,-500.0,0.00041422,120]
[394053112,1763234735660,-500.0,0.00041422,120]
[394053113,1763234735701,-500.0,0.00041422,120]
[394053114,1763234735745,-500.0,0.00041422,120]
[394053115,1763234735787,-500.0,0.00041422,120]
[394053116,1763234735828,-272.26127428,0.00041422,120]
[394053117,1763234735870,-500.0,0.00041422,120]
[394053118,1763234735909,-500.0,0.00041422,120]
[394053119,1763234735947,-542.44722467,0.00041422,120]
[394053120,1763234735986,-500.0,0.00041422,120]
[394053121,1763234736023,-609.31862405,0.00041422,120]
[394053122,1763234736060,-500.0,0.00041422,120]
[394053123,1763234736099,-500.0,0.00041422,120]
[394053124,1763234736140,-500.0,0.00041422,120]
[394053125,1763234736179,-500.0,0.00041422,120]
[394053126,1763234736225,-152.9489055,0.00041422,120]
[394053127,1763234736273,-500.0,0.00041422,120]
[394053128,1763234736311,-612.22842925,0.00041422,120]
[394053129,1763234736351,-500.0,0.00041422,120]
[394053130,1763234736388,-500.0,0.00041422,120]
[394053131,1763234736424,-500.0,0.00041422,120]
[394053132,1763234736460,-392.74154009,0.00041422,120]
[394053133,1763234736495,-500.0,0.00041422,120]
[394053134,1763234736531,-500.0,0.00041422,120]
[394053135,1763234736567,-500.0,0.00041422,120]
[394053136,1763234736605,-438.74217884,0.00041422,120]
[394053137,1763234736644,-500.0,0.00041422,120]
[394053138,1763234736683,-500.0,0.00041422,120]
[394053139,1763234736721,-214.34524158,0.00041422,120]
[394053140,1763234736760,-500.0,0.00041422,120]
[394053141,1763234736800,-500.0,0.00041422,120]
[394053142,1763234736841,-500.0,0.00041422,120]
[394053143,1763234736883,-500.0,0.00041422,120]
[394053144,1763234736926,-500.0,0.00041422,120]
[394053145,1763234736969,-500.0,0.00041422,120]
[394053146,1763234737007,-500.0,0.00041422,120]